bitfinex-derivatives/quotes_SOLF0:USTF0_20250310
["timestamp","ask_amount","ask_price","bid_price","bid_amount"]
[1741623407677,4.015e-05,121.06,121.04,8.2636]
[1741623408181,4.015e-05,121.06,121.03,41.41348934]
[1741623408778,4.015e-05,121.06,121.03,49.67778934]
[1741623408981,2.4801281,121.06,121.03,41.41348934]
[1741623409481,10.7428281,121.06,121.03,49.67778934]
[1741623409975,2.4801281,121.06,121.03,0.05348934]
[1741623410175,2.4801281,121.06,120.98,56.97830863]
[1741623410176,2.4801281,121.06,120.96,56.97830863]
[1741623410374,59.45839658,121.06,120.96,98.31830863]
[1741623410577,59.45839658,121.06,120.97,62.0]
[1741623411381,0.06036656,121.03,121.0,0.05978274]
[1741623411774,2.54045451,121.03,121.0,0.05978274]
[1741623412778,8.266,121.01,121.0,0.05978274]
[1741623412978,8.266,121.01,120.97,70.2684]
[1741623413278,2.48008795,121.01,121.0,8.2667]
[1741623413477,4.0204,121.02,121.0,8.2667]
[1741623413674,41.34,121.06,120.98,41.34]
[1741623413880,8.2648,121.03,121.0,8.2665]
[1741623414080,0.06131443,121.03,121.01,0.06270683]
[1741623414280,2.54140238,121.03,121.01,0.06270683]
[1741623414979,10.80640238,121.03,121.01,0.06270683]
[1741623415283,2.54140238,121.03,121.01,0.06270683]
[1741623415477,10.80660238,121.03,121.01,0.06270683]
[1741623415879,2.54140238,121.03,121.01,0.06270683]
[1741623416079,10.80650238,121.03,121.01,0.06270683]
[1741623416279,2.54140238,121.03,121.01,0.06270683]
[1741623417078,8.2654,121.02,121.01,0.06270683]
[1741623417483,2.48008795,121.02,121.01,0.06270683]
[1741623417682,10.74548795,121.02,121.01,0.06270683]
[1741623418083,8.2669,121.0,120.97,70.2685]
[1741623418280,2.48008795,121.02,120.97,62.0]
[1741623419182,4.1478,121.05,120.97,62.0]
[1741623419388,0.05476718,121.01,120.97,62.0]
[1741623419788,0.05476718,121.01,120.98,8.2677]
[1741623419986,0.05476718,121.01,120.97,62.0]
[1741623420692,0.05476718,121.01,120.99,8.2671]
[1741623420980,0.05476718,121.01,120.97,62.0]
[1741623421382,6.718e-05,121.01,121.0,8.2667]
[1741623421578,6.718e-05,121.01,121.0,49.6067]
[1741623426889,6.718e-05,121.01,121.0,8.2667]
[1741623427792,8.1246,121.07,121.05,8.2627]
[1741623427991,6.50048795,121.07,121.03,41.34]
[1741623428187,4.0399,121.08,121.03,41.34]
[1741623428393,4.0601,121.11,121.04,35.38396765]
[1741623428590,6.54018795,121.11,121.03,41.34]
[1741623428792,8.3230891,121.09,121.06,8.31649479]
[1741623428992,0.0620891,121.09,121.06,0.05419479]
[1741623429194,2.54217705,121.09,121.06,0.05419479]
[1741623430491,2.54217705,121.09,121.03,41.34]
[1741623430689,4.0928,121.08,121.03,41.34]
[1741623430885,8.2623,121.07,121.04,8.2636]
[1741623431089,6.57288795,121.08,121.03,41.34]
[1741623431693,0.056806,121.07,121.03,41.34]
[1741623431896,0.056806,121.07,121.0,41.32]
[1741623432099,8.2637,121.05,121.02,8.265]
[1741623432397,2.53689395,121.07,121.0,41.32]
[1741623432594,10.74218795,121.07,121.04,8.2636]
[1741623432902,0.05926021,121.05,121.0,76.70396765]
[1741623433101,0.01786021,121.05,121.04,8.264]
[1741623433297,4.0601,121.11,121.04,41.32]
[1741623433495,4.0601,121.11,121.04,76.70396765]
[1741623433496,6.54018795,121.11,121.04,76.70396765]
[1741623433697,2.48008795,121.11,121.04,76.70396765]
[1741623434201,8.1773,121.12,121.06,35.38396765]
[1741623434403,35.38396765,121.18,121.08,35.38396765]
[1741623434603,0.0069238,121.1,121.09,41.32]
[1741623434807,14.36497017,121.17,121.09,41.32]
[1741623435097,35.38396765,121.16,121.04,307.96396765]
[1741623435295,35.38396765,121.16,121.05,41.32]
[1741623435491,4.1924,121.15,121.06,35.38396765]
[1741623435694,0.05761602,121.12,121.09,0.0534954]
[1741623435895,0.05761602,121.12,121.05,41.32]
[1741623436192,8.2595,121.11,121.05,41.32]
[1741623436392,2.53770397,121.12,121.06,62.0]
[1741623436597,2.48008795,121.12,121.06,62.0]
[1741623437100,0.06196974,121.1,121.08,0.06099497]
[1741623437296,8.2606,121.09,121.08,0.06099497]
[1741623437497,2.54205769,121.1,121.08,0.06099497]
[1741623437699,0.06196974,121.1,121.08,0.06099497]
[1741623437896,0.06196974,121.1,121.09,41.3]
[1741623438703,2.54205769,121.1,121.09,49.5606]
[1741623439006,2.54205769,121.1,121.09,41.3]
[1741623439197,0.06196974,121.1,121.09,41.3]
[1741623439394,0.06196974,121.1,121.09,49.5606]
[1741623439595,0.06196974,121.1,121.09,41.3]
[1741623440403,0.06196974,121.1,121.09,49.5606]
[1741623440602,0.06196974,121.1,121.09,8.2606]
[1741623442096,0.06196974,121.1,121.08,49.62179497]
[1741623442400,2.54205769,121.1,121.08,0.06099497]
[1741623442709,2.54205769,121.1,121.0,126.83648781]
[1741623443003,8.2625,121.07,121.01,41.3]
[1741623443199,35.38396765,121.08,121.0,91.45252016]
[1741623443600,37.8640556,121.08,121.0,99.71882016]
[1741623443799,0.06256486,121.05,121.0,91.45252016]
[1741623444002,2.54265281,121.05,121.0,91.45252016]
[1741623444602,0.06256486,121.05,121.01,57.50040744]
[1741623444902,0.06256486,121.05,121.02,41.28]
[1741623445299,6.486e-05,121.05,121.03,57.50040744]
[1741623445497,6.486e-05,121.05,121.04,70.264]
[1741623447205,8.5024,121.14,121.04,64.48]
[1741623447401,10.98248795,121.14,121.09,57.50040744]
[1741623447602,10.98248795,121.14,121.13,8.2579]
[1741623447802,10.98248795,121.14,121.1,41.28]
[1741623448207,0.05746455,121.13,121.11,0.05453289]
[1741623448706,2.5375525,121.13,121.11,0.05453289]
[1741623448907,2.5375525,121.13,121.12,8.2585]
[1741623449313,0.05746455,121.13,121.12,8.2585]
[1741623450408,2.5375525,121.13,121.11,49.59333289]
[1741623450707,2.5375525,121.13,121.06,41.28]
[1741623451006,2.48008795,121.13,121.07,8.2619]
[1741623451207,4.3632,121.12,121.05,41.28]
[1741623451401,2.48008795,121.13,121.05,98.78040744]
[1741623451604,2.48008795,121.13,121.07,57.50040744]
[1741623451806,8.683e-05,121.1,121.09,57.50040744]
[1741623452009,8.683e-05,121.1,121.09,98.83866832]
[1741623452204,8.4273,121.18,121.09,373.77866832]
[1741623452408,10.90738795,121.18,121.11,57.50040744]
[1741623452911,0.05260053,121.16,121.13,0.05889976]
[1741623453107,0.05260053,121.16,121.14,41.26]
[1741623453307,0.05260053,121.16,121.15,8.2565]
[1741623453621,0.05260053,121.16,121.15,70.2565]
[1741623455003,2.53268848,121.16,121.15,62.0]
[1741623455210,2.53268848,121.16,121.13,0.05889976]
[1741623456207,8.4689,121.15,121.08,41.26]
[1741623456407,8.2579,121.13,121.09,8.2603]
[1741623456613,10.94898795,121.15,121.08,98.76040744]
[1741623456814,6.64478795,121.15,121.1,57.50040744]
[1741623457307,0.06052036,121.14,121.1,57.50040744]
[1741623457712,0.06052036,121.14,121.13,8.2579]
[1741623458018,2.036e-05,121.14,121.13,8.2579]
[1741623458209,2.036e-05,121.14,121.13,70.2579]
[1741623459818,4.0756,121.19,121.13,62.0]
[1741623460015,6.55568795,121.19,121.13,62.0]
[1741623460218,6.55568795,121.19,121.15,8.2561]
[1741623460513,6.55568795,121.19,121.12,41.24]
[1741623460715,6.55568795,121.19,121.13,8.2574]
[1741623460915,0.05991376,121.17,121.14,0.05628636]
[1741623461316,2.54000171,121.17,121.14,0.05628636]
[1741623461521,4.04,121.16,121.09,41.24]
[1741623461722,8.2568,121.15,121.09,41.24]
[1741623461920,2.48008795,121.15,121.09,41.24]
[1741623462610,0.06055077,121.13,121.09,41.24]
[1741623463113,2.54063872,121.13,121.09,41.24]
[1741623463308,10.79893872,121.13,121.09,103.24]
[1741623463510,2.54063872,121.13,121.06,329.88040744]
[1741623463914,2.54063872,121.13,121.03,57.50040744]
[1741623464111,2.48008795,121.13,121.03,57.50040744]
[1741623464318,0.0567071,121.09,121.05,57.50040744]
[1741623464617,0.0567071,121.09,121.08,8.2613]
[1741623464827,2.53679505,121.09,121.05,57.50040744]
[1741623465020,2.53679505,121.09,121.03,98.74040744]
[1741623465323,0.0567071,121.09,121.08,8.2613]
[1741623465520,2.53679505,121.09,121.03,98.74040744]
[1741623466424,2.53679505,121.09,121.08,8.2613]
[1741623466726,7.1e-06,121.09,121.08,127.76170744]
[1741623468021,4.04,121.16,121.14,8.2567]
[1741623468219,6.52008795,121.16,121.11,57.50040744]
[1741623468428,6.52008795,121.16,121.11,98.74040744]
[1741623468722,6.52008795,121.16,121.15,8.2565]
[1741623469322,6.52008795,121.16,121.08,119.50040744]
[1741623469829,14.77618795,121.16,121.13,8.2575]
[1741623470128,6.52008795,121.16,121.08,119.50040744]
[1741623470331,6.52008795,121.16,121.14,8.2568]
[1741623470529,0.05990514,121.13,121.11,98.72040744]
[1741623470826,4.04,121.16,121.11,98.72040744]
[1741623471028,6.52008795,121.16,121.11,98.72040744]
[1741623471823,0.05456488,121.15,121.12,0.05921991]
[1741623472125,0.05456488,121.15,121.14,8.2572]
[1741623472328,2.53465283,121.15,121.14,8.2572]
[1741623472724,6.488e-05,121.15,121.14,8.2572]
[1741623476036,6.488e-05,121.15,121.14,70.2572]
[1741623479735,2.48015283,121.15,121.12,0.05921991]
[1741623480235,2.48015283,121.15,121.14,8.2572]
[1741623480434,6.488e-05,121.15,121.14,8.2572]
[1741623480637,2.48015283,121.15,121.14,8.2572]
[1741623480837,6.488e-05,121.15,121.14,8.2572]
[1741623481836,4.233,121.24,121.14,57.50040744]
[1741623482047,6.71308795,121.24,121.16,57.50040744]
[1741623482243,6.71308795,121.24,121.17,41.18]
[1741623482536,6.71308795,121.24,121.18,57.50040744]
[1741623482741,6.71308795,121.24,121.19,62.0]
[1741623482934,0.05995389,121.22,121.2,0.05951065]
[1741623483334,2.54004184,121.22,121.21,49.4318]
[1741623483543,0.05995389,121.22,121.21,49.4318]
[1741623483742,2.54004184,121.22,121.21,41.18]
[1741623484039,0.05995389,121.22,121.21,49.4324]
[1741623484644,5.389e-05,121.22,121.21,49.4324]
[1741623485536,5.389e-05,121.22,121.2,0.05951065]
[1741623485743,2.48014184,121.22,121.2,0.05951065]
[1741623486137,2.48014184,121.22,121.21,8.2524]
[1741623486949,5.389e-05,121.22,121.21,8.2524]
[1741623487745,2.48014184,121.22,121.21,8.2524]
[1741623488142,5.389e-05,121.22,121.21,8.2524]
[1741623489442,2.48014184,121.22,121.2,0.05951065]
[1741623489845,2.48014184,121.22,121.19,41.16]
[1741623490347,8.2531,121.2,121.15,41.16]
[1741623490546,4.2905,121.21,121.16,8.2554]
[1741623490848,12.333,121.19,121.15,41.16]
[1741623491148,12.333,121.19,121.17,0.06057029]
[1741623491347,6.55898795,121.19,121.11,328.23056914]
[1741623491540,6.55898795,121.19,121.12,41.16]
[1741623491943,8.2547,121.18,121.14,8.2571]
[1741623492143,6.55898795,121.19,121.14,8.2571]
[1741623492339,6.55898795,121.19,121.11,20.67963445]
[1741623492544,8.2564,121.16,121.15,0.0546995]
[1741623492849,8.2564,121.16,121.12,111.4183]
[1741623493049,2.48008795,121.16,121.12,62.0]
[1741623493252,2.48008795,121.16,121.15,8.2565]
[1741623493951,2.48008795,121.16,121.12,62.0]
[1741623495950,4.0362,121.15,121.12,62.0]
[1741623496147,12.2931,121.15,121.12,62.0]
[1741623496351,6.51628795,121.15,121.12,62.0]
[1741623496743,6.51628795,121.15,121.06,329.6126593]
[1741623496947,63.90894725,121.15,121.05,91.45252016]
[1741623497148,8.2609,121.09,121.05,86.56042016]
[1741623497449,57.3926593,121.13,121.05,78.29752016]
[1741623497649,57.3926593,121.13,121.07,8.2615]
[1741623497650,0.05624441,121.08,121.07,8.2615]
[1741623497848,59.87274725,121.13,121.05,78.29752016]
[1741623498147,0.06146109,121.1,121.05,78.29752016]
[1741623498555,2.54154904,121.1,121.05,78.29752016]
[1741623499154,2.54154904,121.1,121.02,57.3926593]
[1741623499455,2.48008795,121.1,121.08,8.2609]
[1741623499754,2.48008795,121.1,121.04,57.3926593]
[1741623500156,41.14,121.14,121.04,48.33557135]
[1741623500353,194.0,121.13,121.04,48.33557135]
[1741623500560,8.2633,121.05,121.01,8.2658]
[1741623500858,41.16,121.05,120.99,62.0]
[1741623501057,0.05986743,121.04,120.99,62.0]
[1741623501549,0.05986743,121.04,121.03,8.2647]
[1741623501948,0.05986743,121.04,120.99,62.0]
[1741623502155,8.32426743,121.04,121.0,8.2665]
[1741623502752,0.05986743,121.04,120.96,49.8416]
[1741623503053,8.2647,121.03,120.99,8.2671]
[1741623503356,0.05967607,121.01,121.0,8.2667]
[1741623503555,41.14,121.05,120.97,57.3926593]
[1741623503854,0.05623596,121.02,120.99,57.3926593]
[1741623504057,0.05623596,121.02,121.0,41.16]
[1741623504648,0.05623596,121.02,121.01,8.266]
[1741623505255,0.05623596,121.02,121.0,41.16]
[1741623505456,0.05623596,121.02,120.97,57.3926593]
[1741623505652,0.05623596,121.02,120.96,49.8416]
[1741623505853,0.05623596,121.02,120.95,57.3926593]
[1741623506057,0.05623596,121.02,120.94,41.16]
[1741623506257,98.5526593,121.06,121.0,8.2667]
[1741623506455,0.05791138,120.99,120.98,41.16]
[1741623506657,41.16,121.06,120.98,41.16]
[1741623506849,194.0,121.07,120.98,41.16]
[1741623507357,251.3926593,121.06,120.98,41.16]
[1741623507752,57.55565248,121.05,120.98,41.16]
[1741623507953,0.05626163,121.03,121.01,0.05452298]
[1741623508559,8.2654,121.02,121.01,0.05452298]
[1741623509553,8.2663,121.01,120.95,57.55565248]
[1741623509758,8.2663,121.01,120.96,41.16]
[1741623509955,8.2663,121.01,120.95,98.71565248]
[1741623510353,8.2668,121.0,120.95,57.55565248]
[1741623510549,4.2646,121.03,120.92,4.1205]
[1741623510550,41.16,120.99,120.92,4.1205]
[1741623510754,41.22349824,120.99,120.9,98.71565248]
[1741623510959,41.22349824,120.99,120.94,8.2705]
[1741623511155,41.16,120.99,120.91,57.55565248]
[1741623511356,0.06322111,120.98,120.91,57.55565248]
[1741623511551,0.06322111,120.98,120.93,8.2712]
[1741623511758,0.06322111,120.98,120.91,57.55565248]
[1741623511959,8.2692,120.97,120.91,57.55565248]
[1741623512263,41.16,120.99,120.93,8.271]
[1741623512462,0.05241509,120.95,120.94,62.0]
[1741623512760,194.0,120.98,120.86,835.84132238]
[1741623512962,0.06103144,120.96,120.86,620.85697486]
[1741623513163,41.16,120.95,120.86,563.30132238]
[1741623513552,0.06020264,120.92,120.86,563.30132238]
[1741623513862,0.06020264,120.92,120.88,8.2745]
[1741623514057,41.16,120.95,120.86,57.55565248]
[1741623514260,0.06185765,120.92,120.89,35.44350559]
[1741623514459,0.06185765,120.92,120.91,8.2729]
[1741623515662,0.06185765,120.92,120.91,70.2729]
[1741623516164,5.765e-05,120.92,120.91,70.2729]
[1741623516462,5.765e-05,120.92,120.83,8.329]
[1741623516661,41.16,120.94,120.84,35.44350559]
[1741623516965,41.16,120.94,120.91,8.2728]
[1741623517162,41.16,120.94,120.86,35.44350559]
[1741623517363,41.22136702,120.94,120.91,0.05826623]
[1741623517561,41.16,120.94,120.86,76.60350559]
[1741623517762,41.16,120.94,120.91,0.0612721]
[1741623517954,8.2722,120.92,120.91,0.0612721]
[1741623518158,41.22088159,120.94,120.91,0.0612721]
[1741623518361,4.1576,120.93,120.91,0.0612721]
[1741623518853,0.06088159,120.94,120.91,0.0612721]
[1741623519455,4.18028159,120.94,120.91,0.0612721]
[1741623519661,8.2726,120.92,120.87,62.0]
[1741623519961,41.16,120.93,120.87,62.0]
[1741623520166,41.16,120.93,120.89,8.2742]
[1741623520465,41.16,120.93,120.87,62.0]
[1741623520667,0.05914514,120.91,120.87,62.0]
[1741623521565,0.05914514,120.91,120.84,35.47339205]
[1741623521765,0.05914514,120.91,120.84,41.18]
[1741623522268,0.05914514,120.91,120.84,41.16]
[1741623522566,8.2739,120.9,120.86,8.2759]
[1741623522767,0.05914514,120.91,120.84,41.16]
[1741623522957,8.2737,120.9,120.86,8.2758]
[1741623523162,76.63339205,120.93,120.84,41.16]
[1741623523358,0.05209335,120.9,120.84,41.16]
[1741623523563,0.05209335,120.9,120.85,8.2769]
[1741623523771,8.69789335,120.9,120.83,4.1566]
[1741623523969,0.05209335,120.9,120.88,8.2745]
[1741623524267,0.05209335,120.9,120.84,35.47339205]
[1741623524569,0.05209335,120.9,120.88,8.2747]
[1741623525370,0.05209335,120.9,120.85,62.0]
[1741623525666,0.05209335,120.9,120.84,41.16]
[1741623526067,0.05209335,120.9,120.83,4.1566]
[1741623526068,0.05209335,120.9,120.85,8.2765]
[1741623526273,41.16,120.89,120.8,4.1576]
[1741623526459,35.47339205,120.88,120.8,4.1576]
[1741623526659,0.05204589,120.86,120.8,4.1576]
[1741623527066,0.05204589,120.86,120.81,41.16]
[1741623527464,0.05204589,120.86,120.82,8.2786]
[1741623527663,0.05204589,120.86,120.81,76.63339205]
[1741623528065,0.05204589,120.86,120.83,8.278]
[1741623528261,0.05204589,120.86,120.81,41.16]
[1741623528665,0.05204589,120.86,120.82,62.0]
[1741623529066,0.05204589,120.86,120.81,41.16]
[1741623529267,0.05204589,120.86,120.82,8.2787]
[1741623529574,0.05204589,120.86,120.81,41.16]
[1741623529774,8.32874589,120.86,120.81,41.16]
[1741623530073,0.05204589,120.86,120.81,41.16]
[1741623530275,0.05204589,120.86,120.83,8.2782]
[1741623530474,0.05204589,120.86,120.81,76.63339205]
[1741623530670,0.05204589,120.86,120.81,41.16]
[1741623530871,0.05204589,120.86,120.81,76.63339205]
[1741623531175,194.0,120.95,120.85,35.47339205]
[1741623531372,8.2742,120.9,120.86,41.16]
[1741623531571,39.59279205,120.94,120.86,41.16]
[1741623531770,35.47339205,120.92,120.84,8.2772]
[1741623531969,8.2736,120.9,120.85,62.0]
[1741623532175,39.59279205,120.94,120.85,62.0]
[1741623532376,0.06115919,120.89,120.87,8.2752]
[1741623532578,0.06115919,120.89,120.86,0.0541542]
[1741623532774,0.06115919,120.89,120.86,41.2141542]
[1741623533077,194.0,120.95,120.87,35.47339205]
[1741623533272,4.0848,120.98,120.89,35.47339205]
[1741623533476,4.0848,120.98,120.9,41.16]
[1741623533975,39.55819205,120.98,120.9,41.16]
[1741623534173,0.05746104,120.95,120.93,0.05811594]
[1741623534572,0.05746104,120.95,120.93,8.32931594]
[1741623534777,0.05746104,120.95,120.93,0.05811594]
[1741623535375,8.2656,121.02,120.94,41.16]
[1741623535573,53.3902,121.04,120.95,35.47339205]
[1741623535775,194.0,121.06,120.97,35.47339205]
[1741623535975,76.63339205,121.08,120.98,45.3512]
[1741623536171,76.63339205,121.08,120.98,49.496]
[1741623536375,35.47339205,121.06,120.98,8.336]
[1741623536571,0.0598464,121.04,121.02,0.06338832]
[1741623536775,41.2198464,121.04,121.02,0.06338832]
[1741623536985,0.0598464,121.04,121.02,0.06338832]
[1741623537780,0.0598464,121.04,121.02,8.32828832]
[1741623537975,0.0598464,121.04,121.02,0.06338832]
[1741623538177,0.0598464,121.04,121.02,8.32858832]
[1741623538378,0.0598464,121.04,121.02,0.06338832]
[1741623539481,0.0598464,121.04,121.03,41.14]
[1741623539674,0.0598464,121.04,121.03,49.4047]
[1741623539877,0.0598464,121.04,121.03,41.14]
[1741623540473,12.5839,121.11,121.03,41.14]
[1741623540679,8.2588,121.12,121.06,8.2622]
[1741623540982,194.0,121.13,121.03,41.14]
[1741623541583,0.05440281,121.09,121.07,0.06305378]
[1741623541781,8.2613,121.08,121.07,0.06305378]
[1741623542278,8.2638,121.05,121.01,4.1606]
[1741623542480,0.05440281,121.09,121.02,97.47339205]
[1741623542781,194.0,121.12,121.02,97.47339205]
[1741623542984,194.0,121.12,121.02,62.0]
[1741623543183,194.0,121.12,121.01,4.1606]
[1741623543385,0.05487214,121.08,121.01,45.2806]
[1741623543585,35.52826419,121.08,121.05,0.05648205]
[1741623543788,35.47339205,121.06,120.98,4.1448]
[1741623544089,35.47339205,121.02,120.95,4.1872]
[1741623544284,35.47339205,121.04,120.95,4.1872]
[1741623544893,0.06317441,121.01,120.98,0.05777276]
[1741623545594,0.06317441,121.01,120.98,4.29767276]
[1741623545794,0.06317441,121.01,120.98,0.05777276]
[1741623546194,35.53656646,121.01,120.98,0.05777276]
[1741623546396,0.06317441,121.01,120.98,0.05777276]
[1741623546787,194.0,121.05,120.98,0.05777276]
[1741623546994,45.1742,121.07,121.01,8.2658]
[1741623547191,45.1742,121.07,120.99,35.47339205]
[1741623547494,12.3167,121.07,121.01,8.2657]
[1741623547691,4.0542,121.07,121.0,8.32]
[1741623547895,39.52759205,121.07,121.0,8.32]
[1741623548098,0.06137394,121.05,121.02,0.06173329]
[1741623551087,0.06137394,121.05,121.03,8.2643]
[1741623551301,0.06137394,121.05,121.02,0.06173329]
[1741623551693,0.06137394,121.05,121.03,8.2647]
[1741623551894,0.06137394,121.05,121.02,0.06173329]
[1741623552100,0.06137394,121.05,121.03,41.1]
[1741623552296,194.0,121.1,121.03,49.3784]
[1741623552505,8.2274,121.13,121.06,35.47339205]
[1741623552705,194.0,121.15,121.12,8.2581]
[1741623552915,49.2408,121.17,121.09,41.1]
[1741623553116,4.1936,121.19,121.1,35.47339205]
[1741623553315,12.4478,121.19,121.14,8.2568]
[1741623553505,0.06102072,121.16,121.13,0.05213269]
[1741623555512,0.00274592,121.16,121.13,41.13213269]
[1741623557107,251.3981391,121.29,121.14,114.7962782]
[1741623557414,65.8227391,121.27,121.16,57.3981391]
[1741623557615,8.4246,121.27,121.17,45.1856]
[1741623558208,0.06054143,121.23,121.21,0.05531694]
[1741623558607,8.2517,121.22,121.21,0.05531694]
[1741623559214,0.06054143,121.23,121.21,0.05531694]
[1741623559614,8.2517,121.22,121.21,0.05531694]
[1741623560318,0.06054143,121.23,121.16,41.08]
[1741623560718,194.0,121.26,121.16,41.08]
[1741623561012,8.2508,121.24,121.17,3.9965]
[1741623561216,194.0,121.26,121.17,3.9965]
[1741623561413,8.2504,121.24,121.17,3.9965]
[1741623561615,0.06223087,121.22,121.19,0.06334555]
[1741623561815,0.06223087,121.22,121.2,41.06]
[1741623563018,0.06223087,121.22,121.21,8.2524]
[1741623563317,0.06223087,121.22,121.21,70.2524]
[1741623563520,0.06223087,121.22,121.21,62.0]
[1741623564020,0.06223087,121.22,121.21,70.2524]
[1741623564216,0.00691393,121.22,121.21,70.2524]
[1741623564521,4.3686,121.28,121.21,62.0]
[1741623564920,4.3686,121.28,121.22,41.04]
[1741623565314,194.0,121.3,121.22,41.04]
[1741623565622,0.06175665,121.27,121.25,0.05943015]
[1741623567717,0.06175665,121.27,121.25,8.30903015]
[1741623567917,0.06175665,121.27,121.25,0.05943015]
[1741623568312,8.249,121.26,121.25,0.05943015]
[1741623569824,0.06175665,121.27,121.25,0.05943015]
[1741623570023,0.06175665,121.27,121.25,41.07943015]
[1741623570418,0.06175665,121.27,121.26,8.249]
[1741623570616,0.06175665,121.27,121.25,41.07943015]
[1741623571218,98.4181391,121.35,121.25,41.07943015]
[1741623571419,8.2463,121.3,121.26,70.2485]
[1741623571618,98.4181391,121.35,121.26,62.0]
[1741623571817,206.3974,121.36,121.26,119.3981391]
[1741623572024,8.2439,121.34,121.28,57.3981391]
[1741623572219,206.3974,121.36,121.29,41.02]
[1741623572426,8.2463,121.3,121.29,41.02]
[1741623572625,8.2463,121.3,121.25,8.4197]
[1741623572829,98.4181391,121.35,121.26,41.02]
[1741623573223,41.02,121.35,121.26,41.02]
[1741623573624,8.2464,121.3,121.26,49.2686]
[1741623573826,41.02,121.35,121.26,41.02]
[1741623574027,0.05638532,121.29,121.27,0.05336771]
[1741623574223,0.05638532,121.29,121.26,98.4181391]
[1741623574224,41.02,121.35,121.26,76.24952337]
[1741623574626,8.2452,121.32,121.28,8.2473]
[1741623575030,206.3974,121.36,121.26,76.24952337]
[1741623575230,206.3974,121.36,121.26,41.02]
[1741623575529,0.06081351,121.32,121.3,0.05865845]
[1741623575926,8.2456,121.31,121.3,0.05865845]
[1741623576723,8.30581351,121.32,121.3,0.05865845]
[1741623577031,0.06081351,121.32,121.3,41.05865845]
[1741623577227,0.06081351,121.32,121.3,76.28818182]
[1741623577431,0.06081351,121.32,121.3,41.05865845]
[1741623577826,8.2456,121.31,121.3,0.05865845]
[1741623578023,0.06081351,121.32,121.3,0.05865845]
[1741623578519,8.2456,121.31,121.3,0.05865845]
[1741623579933,0.06081351,121.32,121.3,0.05865845]
[1741623580133,0.06081351,121.32,121.3,8.30445845]
[1741623580628,0.06081351,121.32,121.3,0.05865845]
[1741623581135,0.06081351,121.32,121.3,76.26818182]
[1741623581440,0.06081351,121.32,121.31,8.2456]
[1741623581635,0.06081351,121.32,121.31,70.2456]
[1741623582134,0.06081351,121.32,121.31,62.0]
[1741623583124,0.06081351,121.32,121.3,41.03865845]
[1741623583733,8.2456,121.31,121.3,41.03865845]
[1741623583933,0.06081351,121.32,121.3,0.05865845]
[1741623585437,8.2456,121.31,121.3,0.05865845]
[1741623585935,0.06081351,121.32,121.3,8.30485845]
[1741623586142,0.06081351,121.32,121.3,0.05865845]
[1741623586336,0.06081351,121.32,121.3,41.03865845]
[1741623586939,0.06081351,121.32,121.3,0.05865845]
[1741623587139,8.2456,121.31,121.3,0.05865845]
[1741623588230,0.06081351,121.32,121.3,0.05865845]
[1741623588634,8.2456,121.31,121.3,0.05865845]
[1741623589440,12.40871351,121.32,121.24,45.0341]
[1741623589742,35.22952337,121.31,121.2,35.22952337]
[1741623589946,35.22952337,121.29,121.21,40.96]
[1741623590134,40.96,121.28,121.2,62.0]
[1741623590334,35.22952337,121.27,121.18,90.07297193]
[1741623590541,8.253,121.21,121.18,90.07297193]
[1741623590744,0.06116192,121.24,121.18,90.07297193]
[1741623590934,35.22952337,121.25,121.18,90.13496215]
[1741623591139,8.2528,121.21,121.18,90.13496215]
[1741623591439,0.06345364,121.22,121.18,90.13496215]
[1741623591843,8.2537,121.2,121.18,90.13496215]
[1741623592041,0.06345364,121.22,121.18,90.13496215]
[1741623592745,8.2538,121.19,121.18,90.13496215]
[1741623593446,8.2535,121.2,121.18,90.13496215]
[1741623593943,8.31555364,121.22,121.18,90.13496215]
[1741623594143,0.06345364,121.22,121.18,90.13496215]
[1741623594546,35.29297701,121.22,121.18,90.13496215]
[1741623594745,4.0204,121.21,121.18,90.13496215]
[1741623595648,8.31525364,121.22,121.18,0.06199022]
[1741623595945,0.06345364,121.22,121.18,0.06199022]
[1741623596748,8.2534,121.2,121.18,0.06199022]
[1741623597043,0.06345364,121.22,121.18,0.06199022]
[1741623597443,0.06345364,121.22,121.19,62.0]
[1741623598942,0.06345364,121.22,121.21,8.2524]